fUSD/lending_fUSD_20240719
["ID","MTS","AMOUNT","RATE_DAILY","PERIOD"]
[332642816,1721403038596,-601.16895,0.0002587,2]
[332642817,1721403038605,-151.09343033,0.000259,2]
[332642818,1721403038615,-300.0,0.00025913,2]
[332642819,1721403038624,-151.81260136,0.00025991,2]
[332642820,1721403038635,-1822.39346,0.00026015,2]
[332642821,1721403038644,-500.0,0.00026025,2]
[332642822,1721403038654,-500.0,0.00026025,2]
[332642823,1721403038663,-500.0,0.00026025,2]
[332642824,1721403038673,-160.83864897,0.00026056,2]
[332642825,1721403038682,-312.76351383,0.00026073,2]
[332642826,1721403038692,-152.61344492,0.00026233,2]
[332642827,1721403038701,-174.289716,0.00026266,2]
[332642828,1721403038710,-155.27534177,0.00026297,2]
[332642829,1721403038719,-173.48,0.00026304,2]
[332642830,1721403038728,-178.0,0.0002631,12]
[332642831,1721403038737,-2486.59170901,0.00026381,2]
[332642832,1721403038748,-1837.02211287,0.00026381,2]
[332642833,1721403038758,-160.83864897,0.00026536,2]
[332642834,1721403038770,-600.0,0.00026573,2]
[332642835,1721403038779,-43681.03326637,0.00026575,7]
[332642836,1721403038792,-375.80177913,0.00026575,7]
[332642837,1721403038801,-39319.2806006,0.00026575,7]
[332642838,1721403038810,-76471.7498468,0.00026575,7]
[332642839,1721403038821,-4167.46718729,0.00026575,7]
[332642840,1721403038836,-1214.80253227,0.00026575,7]
[332642841,1721403038852,-6940.21000005,0.00026575,7]
[332642842,1721403038863,-1185.34288774,0.00026575,7]
[332642843,1721403038878,-858.74623956,0.00026575,7]
[332642852,1721403040475,-38315.0,0.00020489,2]
[332642853,1721403040485,-17120.17771119,0.00026575,7]
[332642854,1721403040496,-152.61344492,0.00026576,2]
[332642855,1721403040506,-155.24764559,0.00026631,2]
[332642856,1721403040516,-165.94796229,0.00026632,2]
[332642857,1721403040531,-160.83864897,0.00026682,2]
[332642858,1721403040543,-210.55156384,0.00026686,2]
[332642859,1721403040553,-277.34594917,0.00026686,2]
[332642860,1721403040563,-157.99,0.0002669,2]
[332642861,1721403040572,-169.69497688,0.00026694,2]
[332642862,1721403040582,-151.0,0.000267,7]
[332642863,1721403040592,-151.0,0.000267,7]
[332642864,1721403040602,-121285.15356371,0.000267,7]
[332642865,1721403040614,-382.60523184,0.000267,7]
[332642870,1721403043350,-270.109062,0.00014899,2]
[332642871,1721403043360,-159.32598087,0.00014988,2]
[332642872,1721403043371,-5250.0,0.00020489,2]
[332642873,1721403043381,-448.0,0.0002475,2]
[332642874,1721403043390,-200.0,0.00024958,2]
[332642875,1721403043400,-515.49370266,0.00024998,2]
[332642876,1721403043410,-52998.27918694,0.00025,11]
[332642958,1721403044279,-464.64,0.00025,11]
[332642961,1721403044295,-521.67734071,0.00025,11]
[332642965,1721403044308,-2256.33146258,0.00025,11]
[332642968,1721403044325,-1913.60066779,0.00025,11]
[332642972,1721403044339,-11030.37008332,0.00025,11]
[332642974,1721403044350,-400.0,0.00026328,2]
[332642976,1721403044362,-99819.5155653,0.000267,7]
[332642978,1721403044375,-2270.04533134,0.000267,7]
[332642980,1721403044386,-214.37,0.00026781,120]
[332642983,1721403044396,-152.61344492,0.00026804,2]
[332642985,1721403044406,-672.0,0.00026887,2]
[332642987,1721403044416,-800.0,0.000269,9]
[332642989,1721403044427,-150.0,0.00026945,2]
[332642991,1721403044436,-150.0,0.00026945,2]
[332643017,1721403044738,-150.0,0.00026945,2]
[332643018,1721403044748,-150.0,0.00026945,2]
[332643019,1721403044758,-160.83864897,0.00026996,2]
[332643020,1721403044768,-25655.24694946,0.00027,7]
[332643021,1721403045260,-2829.58704795,0.00027,7]
[332643022,1721403045274,-498.09121075,0.00027,7]
[332643023,1721403045286,-1662.404714,0.00027,7]
[332643024,1721403045298,-500.0,0.00027,7]
[332643025,1721403045310,-298.72,0.00027,7]
[332643026,1721403045321,-826.16927255,0.00027,7]
[332643027,1721403045333,-4408.90117738,0.00027,7]
[332643029,1721403045345,-131328.86016183,0.00027,7]
[332643031,1721403045355,-1214.0,0.00027,15]
[332643033,1721403045367,-450.0,0.00027,2]
[332643035,1721403045377,-151.0,0.00027,7]
[332643037,1721403045387,-79073.73818936,0.00027,7]
[332643039,1721403045396,-151.0,0.00027,7]
[332643041,1721403045406,-151.0,0.00027,7]
[332643043,1721403045416,-151.0,0.00027,7]
[332643045,1721403045426,-151.0,0.00027,7]
[332643047,1721403045436,-405.191892,0.00027,7]
[332643049,1721403045445,-405.191892,0.00027,7]
[332643051,1721403045459,-151.0,0.00027,7]
[332643053,1721403045468,-151.0,0.00027,7]
[332643055,1721403045477,-306.958866,0.00027,7]
[332643057,1721403045487,-306.958866,0.00027,7]
[332643059,1721403045497,-151.0,0.00027,7]
[332643061,1721403045507,-245.36,0.00027017,2]
[332643063,1721403045516,-160.83864897,0.00027029,2]
[332643065,1721403045528,-177.69822982,0.0002704,2]
[332643067,1721403045539,-174.937447,0.00027075,2]
[332643069,1721403045548,-601.16894,0.0002712,2]
[332643070,1721403045558,-600.0,0.00027121,2]
[332643072,1721403045567,-500.0,0.00027121,2]
[332643074,1721403045577,-500.0,0.00027121,2]
[332643076,1721403045587,-500.0,0.00027121,2]
[332643078,1721403045596,-160.83864897,0.00027203,2]
[332643080,1721403045606,-312.76351383,0.00027246,2]
[332643082,1721403045615,-1822.39346,0.00027256,2]
[332643083,1721403045625,-153.22167699,0.00027273,2]
[332643084,1721403045637,-2613.12,0.000273,2]
[332643085,1721403045648,-493.67,0.00027326,2]
[332643086,1721403045658,-151.42136548,0.00027337,2]
[332643087,1721403045667,-225.60193953,0.00027397,2]
[332643088,1721403045678,-1000.0,0.00027397,5]
[332643089,1721403045688,-4738.85,0.00027397,10]
[332643090,1721403045698,-1214.0,0.000275,16]
[332643091,1721403045707,-151.42136548,0.00027558,2]
[332643092,1721403045718,-152.61344492,0.00027578,2]
[332643093,1721403045728,-600.0,0.00027669,2]
[332643094,1721403045740,-155.27534177,0.00027714,2]
[332643095,1721403045750,-287.51,0.00027714,2]
[332643096,1721403045759,-155.44710162,0.00027842,2]
[332643097,1721403045768,-2486.59170901,0.0002788,2]
[332643098,1721403045782,-1837.02211287,0.0002788,2]
[332643099,1721403045792,-1214.0,0.00028,16]
[332643100,1721403045802,-249.85277316,0.00028105,2]
[332643101,1721403045811,-600.0,0.00028217,2]
[332643102,1721403045821,-500.0,0.00028217,2]
[332643103,1721403045832,-500.0,0.00028217,2]
[332643104,1721403045842,-151.42136548,0.00028235,2]
[332643106,1721403045852,-160.83864897,0.00028282,2]
[332643107,1721403045861,-160.83864897,0.00028305,2]
[332643108,1721403045871,-160.83864897,0.00028318,2]
[332643109,1721403045880,-151.81260136,0.00028326,2]
[332643110,1721403045890,-601.16895,0.0002837,2]
[332643111,1721403045899,-2613.12,0.000284,2]
[332643112,1721403045909,-312.76351383,0.00028419,2]
[332643113,1721403045920,-169.69497688,0.00028489,2]
[332643114,1721403045930,-153.22167699,0.00028494,2]
[332643115,1721403045940,-1822.39346,0.00028497,2]
[332643116,1721403045950,-1214.0,0.000285,17]
[332643117,1721403045960,-151.81260136,0.00028509,2]
[332643118,1721403045969,-156.26491682,0.00028546,2]
[332643119,1721403045979,-151.81260136,0.00028551,2]
[332643120,1721403045990,-155.27534177,0.00028747,2]
[332643121,1721403046000,-600.0,0.00028765,2]
[332643122,1721403046010,-151.42136548,0.00028837,2]
[332643123,1721403046020,-1160.22,0.00028837,2]
[332643124,1721403046032,-198.8,0.00028837,120]
[332643125,1721403046041,-156.26491682,0.00028906,2]
[332643126,1721403046051,-152.18495313,0.00028922,2]
[332643127,1721403046061,-151.42136548,0.00028922,2]
[332643128,1721403046071,-1377.5433994,0.00029,2]
[332643129,1721403046080,-1214.0,0.00029,17]
[332643130,1721403046089,-500.0,0.00029,2]
[332643132,1721403046099,-1369.67722646,0.00029,2]
[332643134,1721403046109,-160.83864897,0.00029046,2]
[332643136,1721403046119,-156.26491682,0.00029046,2]
[332643137,1721403046128,-153.22167699,0.0002907,2]
[332643139,1721403046138,-160.83864897,0.00029114,2]
[332643140,1721403046147,-151.42136548,0.00029126,2]
[332643141,1721403046157,-177.69822982,0.00029181,2]
[332643142,1721403046166,-153.22167699,0.00029244,2]
[332643143,1721403046176,-2613.12,0.000293,2]
[332643145,1721403046185,-600.0,0.00029313,2]
[332643146,1721403046195,-500.0,0.00029313,2]
[332643147,1721403046204,-500.0,0.00029313,2]
[332643148,1721403046213,-672.0,0.00029331,2]
[332643149,1721403046223,-165.020131,0.00029364,2]
[332643150,1721403046232,-2486.59170901,0.00029378,15]
[332643151,1721403046242,-1837.02211287,0.00029378,15]
[332643152,1721403046252,-165.020131,0.00029384,2]
[332643153,1721403046261,-151.81260136,0.0002939,2]
[332643154,1721403046270,-151.81260136,0.000294,2]
[332643156,1721403046282,-214.37,0.00029459,120]
[332643158,1721403046291,-151.42136548,0.0002948,2]
[332643160,1721403046301,-1214.0,0.000295,18]
[332643163,1721403046311,-150.0,0.00029564,7]
[332643164,1721403046320,-493.67,0.0002959,2]
[332643165,1721403046330,-312.76351383,0.00029592,2]
[332643166,1721403046339,-150.0,0.00029616,7]
[332643167,1721403046349,-601.16895,0.0002962,2]
[332643168,1721403046359,-153.22167699,0.00029628,2]
[332643169,1721403046370,-150.0,0.00029667,7]
[332643170,1721403046380,-211.39508857,0.00029696,2]
[332643171,1721403046389,-5000.0,0.000297,2]
[332643172,1721403046398,-152.61344492,0.00029701,2]
[332643173,1721403046408,-150.5107985,0.00029713,2]
[332643174,1721403046417,-150.0,0.00029718,7]
[332643175,1721403046426,-1822.39346,0.00029738,2]
[332643176,1721403046436,-150.0,0.0002977,7]
[332643177,1721403046445,-2000.0,0.000298,2]
[332643178,1721403046454,-1006.88,0.000298,2]
[332643179,1721403046469,-317.68,0.000298,2]
[332643180,1721403046479,-152.61344492,0.00029805,2]
[332643181,1721403046488,-150.0,0.00029821,7]
[332643182,1721403046499,-160.83864897,0.00029861,2]
[332643183,1721403046508,-150.0,0.00029872,7]
[332643184,1721403046517,-150.0,0.00029924,7]
[332643185,1721403046529,-152.61344492,0.00029925,2]
[332643186,1721403046541,-150.0,0.00029975,7]
[332643187,1721403046551,-157.99,0.0002999,2]
[332643188,1721403046561,-500.0,0.00029999,2]
[332643189,1721403046570,-344.44599915,0.00029999,2]
[332643190,1721403046580,-93712.57514218,0.0003,30]
[332643191,1721403046590,-750.0,0.0003,25]
[332643192,1721403046600,-2251.80545774,0.0003,3]
[332643193,1721403046611,-155.0,0.0003,5]
[332643194,1721403046622,-2174.18283487,0.0003,2]
[332643195,1721403046633,-539.033,0.0003,4]
[332643196,1721403046642,-213.0,0.0003,10]
[332643197,1721403046652,-418.15382376,0.0003,14]
[332643198,1721403046664,-770.71175874,0.0003,4]
[332643199,1721403046676,-199.79938361,0.0003,10]
[332643200,1721403046686,-2000.0,0.0003,2]
[332643201,1721403046697,-1214.0,0.0003,18]
[332643202,1721403046708,-3000.0,0.0003,30]
[332643203,1721403046718,-151.0,0.0003,7]
[332643204,1721403046728,-160.2009532,0.0003,2]
[332643205,1721403046738,-151.0,0.0003,7]
[332643206,1721403046748,-151.0,0.0003,7]
[332643207,1721403046758,-151.0,0.0003,7]
[332643208,1721403046767,-500.0,0.0003,7]
[332643209,1721403046780,-500.0,0.0003,7]
[332643210,1721403046789,-151.0,0.0003,7]
[332643211,1721403046798,-151.0,0.0003,7]
[332643212,1721403046807,-221.163784,0.0003,7]
[332643213,1721403046817,-151.0,0.0003,7]
[332643214,1721403046826,-1635.27752198,0.0003,2]
[332643215,1721403046835,-2000.0,0.0003,2]
[332643216,1721403046845,-154.266455,0.0003,7]
[332643217,1721403046854,-150.0,0.00030026,7]
[332643218,1721403046864,-151.0,0.00030046,7]
[332643219,1721403046873,-151.0,0.00030046,7]
[332643220,1721403046883,-150.0,0.00030078,7]
[332643221,1721403046892,-156.26491682,0.00030078,7]
[332643222,1721403046901,-402.0100041,0.000301,2]
[332643223,1721403046911,-150.0,0.00030129,7]
[332643224,1721403046920,-152.38095238,0.0003013,7]
[332643225,1721403046930,-150.0,0.0003018,7]
[332643226,1721403046940,-2613.12,0.000302,2]
[332643227,1721403046950,-150.0,0.00030232,7]
[332643228,1721403046960,-151.42136548,0.00030251,7]
[332643229,1721403046970,-1160.22,0.00030279,2]
[332643230,1721403046980,-150.0,0.00030283,7]
[332643231,1721403046989,-169.69497688,0.00030283,2]
[332643232,1721403046999,-151.42136548,0.00030293,7]
[332643233,1721403047009,-41152.79055819,0.00030303,2]
[332643234,1721403047019,-152.319699,0.00030311,7]
[332643235,1721403047032,-150.0,0.00030334,7]
[332643236,1721403047042,-1000.0,0.00030346,2]
[332643237,1721403047051,-839.03,0.00030348,2]
[332643238,1721403047061,-156.26491682,0.00030353,7]
[332643239,1721403047070,-150.0,0.00030386,7]
[332643240,1721403047080,-600.0,0.00030409,10]
[332643241,1721403047090,-500.0,0.00030409,10]
[332643242,1721403047099,-500.0,0.00030409,10]
[332643243,1721403047109,-150.0,0.00030437,7]
[332643244,1721403047120,-152.18495313,0.00030452,7]
[332643245,1721403047130,-400.21,0.00030466,120]
[332643246,1721403047139,-150.0,0.00030488,7]
[332643247,1721403047149,-1214.0,0.000305,19]
[332643248,1721403047159,-152.18495313,0.00030518,7]
[332643249,1721403047168,-153.22167699,0.00030523,7]
[332643250,1721403047178,-174.28971602,0.00030529,7]
[332643251,1721403047187,-150.0,0.0003054,7]
[332643252,1721403047196,-150.0,0.00030591,7]
[332643253,1721403047206,-570.738055,0.000306,2]
[332643254,1721403047216,-151.52687951,0.00030627,7]
[332643255,1721403047226,-160.83864897,0.00030635,7]
[332643256,1721403047235,-150.0,0.00030642,7]
[332643257,1721403047245,-160.83864897,0.00030652,7]
[332643258,1721403047256,-165.020131,0.00030676,7]
[332643259,1721403047266,-5372.48111484,0.00030685,3]
[332643260,1721403047279,-438.93673811,0.00030686,3]
[332643261,1721403047291,-150.0,0.00030694,7]
[332643262,1721403047300,-150.0,0.00030745,7]
[332643263,1721403047310,-312.76351383,0.00030764,2]
[332643264,1721403047319,-150.0,0.00030796,7]
[332643265,1721403047329,-2000.0,0.000308,4]
[332643266,1721403047341,-33086.878622,0.000308,30]
[332643267,1721403047351,-151.81260136,0.00030812,7]
[332643268,1721403047361,-152.319699,0.00030814,7]
[332643269,1721403047371,-150.0,0.00030848,7]
[332643270,1721403047381,-601.16894,0.0003087,2]
[332643271,1721403047391,-2486.59170901,0.00030876,15]
[332643272,1721403047401,-1837.02211287,0.00030876,15]
[332643273,1721403047411,-150.0,0.00030899,7]
[332643274,1721403047420,-151.42136548,0.00030948,7]
[332643275,1721403047430,-150.0,0.0003095,7]
[332643276,1721403047439,-1822.39346,0.00030979,2]
[332643277,1721403047449,-1006.88,0.00030985,2]
[332643278,1721403047462,-4783.36733375,0.00031,14]
[332643279,1721403047471,-1214.0,0.00031,19]
[332643280,1721403047481,-550.0,0.00031,2]
[332643281,1721403047491,-155.0,0.00031,2]
[332643282,1721403047500,-150.0,0.00031002,7]
[332643283,1721403047510,-150.0,0.00031053,7]
[332643284,1721403047519,-151.42136548,0.00031057,7]
[332643285,1721403047530,-155.27534177,0.00031058,7]
[332643286,1721403047541,-300.0,0.000311,2]
[332643287,1721403047550,-150.0,0.00031104,7]
[332643288,1721403047560,-152.38095238,0.00031115,7]
[332643289,1721403047569,-150.0,0.00031149,2]
[332643290,1721403047579,-150.0,0.00031156,7]
[332643291,1721403047589,-150.0,0.00031207,7]
[332643292,1721403047598,-5608.36785,0.0003121,2]
[332643293,1721403047607,-151.0,0.0003121,7]
[332643294,1721403047617,-306.958866,0.0003121,7]
[332643295,1721403047626,-306.958866,0.0003121,7]
[332643296,1721403047636,-151.0,0.0003121,7]
[332643297,1721403047645,-152.38095238,0.00031215,7]
[332643298,1721403047655,-150.0,0.00031258,7]
[332643299,1721403047665,-150.0,0.0003131,7]
[332643300,1721403047675,-155.27534177,0.0003131,7]
[332643301,1721403047684,-151.81260136,0.00031314,7]
[332643302,1721403047694,-160.83864897,0.00031315,7]
[332643303,1721403047704,-151.42136548,0.00031315,7]
[332643304,1721403047714,-177.69822982,0.00031321,2]
[332643305,1721403047725,-152.11679399,0.00031332,7]
[332643306,1721403047734,-150.0,0.00031361,7]
[332643307,1721403047744,-317.68,0.000314,2]
[332643308,1721403047754,-150.0,0.00031412,7]
[332643309,1721403047764,-150.0,0.00031463,7]
[332643310,1721403047775,-1214.0,0.000315,20]
[332643311,1721403047785,-5147.96166771,0.000315,2]
[332643312,1721403047795,-160.83864897,0.00031504,7]
[332643313,1721403047806,-600.0,0.00031505,10]
[332643314,1721403047816,-500.0,0.00031505,10]
[332643315,1721403047826,-500.0,0.00031505,10]
[332643316,1721403047836,-150.0,0.00031515,7]
[332643317,1721403047847,-152.61344492,0.00031518,7]
[332643318,1721403047856,-150.0,0.00031566,7]
[332643319,1721403047866,-300.0,0.000316,3]
[332643320,1721403047877,-150.0,0.00031617,7]
[332643321,1721403047887,-165.020131,0.00031629,7]
[332643322,1721403047897,-150.0,0.00031669,7]
[332643323,1721403047907,-160.83864897,0.00031688,7]
[332643324,1721403047916,-155.27534177,0.00031709,7]
[332643325,1721403047928,-165.020131,0.00031719,7]
[332643326,1721403047938,-150.0,0.0003172,7]
[332643327,1721403047949,-1160.22,0.00031721,2]
[332643328,1721403047959,-152.61344492,0.00031726,7]
[332643329,1721403047970,-243.22489,0.00031749,7]
[332643330,1721403047981,-405.191892,0.00031749,7]
[332643331,1721403047992,-405.191892,0.00031749,7]
[332643332,1721403048002,-151.0,0.00031749,7]
[332643333,1721403048011,-500.0,0.00031749,13]
[332643334,1721403048020,-500.0,0.00031749,13]
[332643335,1721403048032,-500.0,0.00031749,13]
[332643336,1721403048041,-500.0,0.00031749,13]
[332643337,1721403048050,-501.0,0.00031749,13]
[332643338,1721403048060,-500.0,0.00031749,13]
[332643339,1721403048070,-500.0,0.00031749,13]
[332643340,1721403048079,-500.0,0.00031749,13]
[332643341,1721403048089,-500.0,0.00031749,13]
[332643342,1721403048099,-500.0,0.00031749,13]
[332643343,1721403048108,-500.0,0.00031749,13]
[332643344,1721403048118,-500.0,0.00031749,13]
[332643345,1721403048127,-500.0,0.00031749,13]
[332643346,1721403048137,-500.0,0.00031749,13]
[332643347,1721403048146,-500.0,0.00031749,13]
[332643348,1721403048156,-500.0,0.00031749,13]
[332643349,1721403048166,-500.0,0.00031749,13]
[332643350,1721403048175,-500.0,0.00031749,13]
[332643351,1721403048184,-500.0,0.00031749,13]
[332643352,1721403048193,-500.0,0.00031749,13]
[332643353,1721403048204,-500.0,0.00031749,13]
[332643354,1721403048214,-500.0,0.00031749,13]
[332643355,1721403048224,-500.0,0.00031749,13]
[332643356,1721403048233,-500.0,0.00031749,13]
[332643357,1721403048243,-500.0,0.00031749,13]
[332643358,1721403048253,-500.0,0.00031749,13]
[332643359,1721403048263,-500.0,0.00031749,13]
[332643360,1721403048277,-500.0,0.00031749,13]
[332643361,1721403048287,-500.0,0.00031749,13]
[332643362,1721403048296,-500.0,0.00031749,13]
[332643363,1721403048306,-500.0,0.00031749,13]
[332643364,1721403048316,-500.0,0.00031749,13]
[332643365,1721403048327,-500.0,0.00031749,13]
[332643366,1721403048338,-500.0,0.00031749,13]
[332643367,1721403048348,-500.0,0.00031749,13]
[332643368,1721403048358,-500.0,0.00031749,13]
[332643369,1721403048369,-500.0,0.00031749,13]
[332643370,1721403048381,-500.0,0.00031749,13]
[332643371,1721403048391,-500.0,0.00031749,13]
[332643372,1721403048402,-500.0,0.00031749,13]
[332643373,1721403048413,-500.0,0.00031749,13]
[332643374,1721403048424,-553.0,0.00031749,13]
[332643375,1721403048435,-500.0,0.00031749,13]
[332643376,1721403048445,-500.0,0.00031749,13]
[332643377,1721403048460,-500.0,0.00031749,13]
[332643378,1721403048470,-500.0,0.00031749,13]
[332643379,1721403048480,-500.0,0.00031749,13]
[332643380,1721403048490,-500.0,0.00031749,13]
[332643381,1721403048501,-500.0,0.00031749,13]
[332643382,1721403048511,-500.0,0.00031749,13]
[332643383,1721403048522,-500.0,0.00031749,13]
[332643384,1721403048534,-500.0,0.00031749,13]
[332643385,1721403048546,-500.0,0.00031749,13]
[332643386,1721403048556,-500.0,0.00031749,13]
[332643387,1721403048566,-500.0,0.00031749,13]
[332643388,1721403048577,-500.0,0.00031749,13]
[332643389,1721403048588,-500.0,0.00031749,13]
[332643390,1721403048600,-500.0,0.00031749,13]
[332643391,1721403048611,-500.0,0.00031749,13]
[332643392,1721403048623,-500.0,0.00031749,13]
[332643393,1721403048634,-500.0,0.00031749,13]
[332643394,1721403048645,-500.0,0.00031749,13]
[332643395,1721403048656,-500.0,0.00031749,13]
[332643396,1721403048668,-150.0,0.00031771,7]
[332643397,1721403048679,-2000.0,0.000318,6]
[332643398,1721403048691,-150.0,0.00031823,7]
[332643399,1721403048702,-151.42136548,0.00031849,7]
[332643400,1721403048714,-493.67,0.00031854,2]
[332643401,1721403048727,-151.42136548,0.00031862,7]
[332643402,1721403048737,-150.0,0.00031874,7]
[332643403,1721403048746,-2001.67865809,0.000319,4]
[332643404,1721403048757,-152.18495313,0.00031906,7]
[332643405,1721403048767,-150.0,0.00031925,7]
[332643406,1721403048779,-312.76351383,0.00031937,2]
[332643407,1721403048788,-150.0,0.00031977,7]
[332643408,1721403048800,-6758.57608726,0.00031999,2]
[332643409,1721403048810,-400.0,0.00032,30]
[332643410,1721403048822,-3000.0,0.00032,30]
[332643411,1721403048836,-789.0,0.00032,2]
[332643412,1721403048847,-600.0,0.00032,7]
[332643413,1721403048859,-636.23,0.00032,7]
[332643414,1721403048870,-1554.0,0.00032,14]
[332643415,1721403048880,-3000.0,0.00032,30]
[332643416,1721403048891,-2000.0,0.00032,30]
[332643417,1721403048904,-1000.0,0.00032,30]
[332643418,1721403048915,-3112.92794242,0.00032,60]
[332643419,1721403048926,-1214.0,0.00032,20]
[332643420,1721403048936,-2613.12,0.00032,2]
[332643421,1721403048947,-150.0,0.00032028,7]
[332643422,1721403048957,-169.69497688,0.00032078,2]
[332643423,1721403048969,-150.0,0.00032079,7]
[332643424,1721403048979,-2049.55332228,0.000321,2]
[332643425,1721403048990,-300.0,0.000321,3]
[332643426,1721403049000,-150.0,0.00032131,7]
[332643427,1721403049011,-181.0,0.00032136,2]
[332643428,1721403049022,-181.0,0.00032136,2]
[332643429,1721403049036,-181.0,0.00032136,2]
[332643430,1721403049046,-181.0,0.00032136,2]
[332643431,1721403049057,-181.0,0.00032136,2]
[332643432,1721403049067,-181.0,0.00032136,2]
[332643433,1721403049079,-181.0,0.00032136,2]
[332643434,1721403049091,-181.0,0.00032136,2]
[332643435,1721403049103,-181.0,0.00032136,2]
[332643436,1721403049114,-181.0,0.00032136,2]
[332643437,1721403049124,-181.0,0.00032136,2]
[332643438,1721403049135,-181.0,0.00032136,2]
[332643439,1721403049146,-181.0,0.00032136,2]
[332643440,1721403049158,-181.0,0.00032136,2]
[332643441,1721403049168,-214.37,0.00032138,120]
[332643442,1721403049179,-181.0,0.00032148,2]
[332643443,1721403049190,-181.0,0.00032148,2]
[332643444,1721403049201,-181.0,0.00032148,2]
[332643445,1721403049212,-181.0,0.00032148,2]
[332643446,1721403049224,-181.0,0.00032148,2]
[332643447,1721403049235,-181.0,0.00032148,2]
[332643448,1721403049246,-181.0,0.00032148,2]
[332643449,1721403049258,-181.0,0.00032148,2]
[332643450,1721403049269,-181.0,0.00032148,2]
[332643451,1721403049284,-181.0,0.00032148,2]
[332643452,1721403049296,-181.0,0.00032148,2]
[332643453,1721403049308,-181.0,0.00032148,2]
[332643454,1721403049320,-181.0,0.00032148,2]
[332643455,1721403049331,-181.0,0.00032148,2]
[332643456,1721403049343,-150.0,0.00032149,2]
[332643457,1721403049354,-181.0,0.0003216,2]
[332643458,1721403049367,-181.0,0.0003216,2]
[332643459,1721403049380,-181.0,0.0003216,2]
[332643460,1721403049390,-181.0,0.0003216,2]
[332643461,1721403049402,-181.0,0.0003216,2]
[332643462,1721403049413,-181.0,0.0003216,2]
[332643463,1721403049424,-181.0,0.0003216,2]
[332643464,1721403049436,-181.0,0.0003216,2]
[332643465,1721403049446,-181.0,0.0003216,2]
[332643466,1721403049459,-181.0,0.0003216,2]
[332643467,1721403049726,-181.0,0.0003216,2]
[332643468,1721403049770,-181.0,0.0003216,2]
[332643469,1721403049786,-181.0,0.0003216,2]
[332643470,1721403049797,-181.0,0.0003216,2]
[332643471,1721403049808,-1006.88,0.0003217,2]
[332643472,1721403049820,-181.0,0.00032172,2]
[332643473,1721403049831,-181.0,0.00032172,2]
[332643474,1721403049841,-181.0,0.00032172,2]
[332643475,1721403049851,-181.0,0.00032172,2]
[332643476,1721403049861,-181.0,0.00032172,2]
[332643477,1721403049871,-181.0,0.00032172,2]
[332643478,1721403049881,-181.0,0.00032172,2]
[332643479,1721403049891,-181.0,0.00032172,2]
[332643480,1721403049901,-181.0,0.00032172,2]
[332643481,1721403049911,-181.0,0.00032172,2]
[332643482,1721403049921,-181.0,0.00032172,2]
[332643483,1721403049931,-181.0,0.00032172,2]
[332643484,1721403049943,-181.0,0.00032172,2]
[332643485,1721403049953,-181.0,0.00032172,2]
[332643486,1721403049963,-150.0,0.00032182,7]
[332643487,1721403049972,-38601.358392,0.000322,30]
[332643488,1721403049983,-156.26491682,0.00032204,7]
[332643489,1721403049992,-1822.39346,0.0003222,2]
[332643490,1721403050002,-153.22167699,0.00032222,7]
[332643491,1721403050013,-150.0,0.00032233,7]